Cogmind - Beta 16 @@@ ROGUE MODE // 2025.11.17 @ 17:04:44 Player: Naughtyusername Result: Self-destructed Performance ------------- Evolutions (5) 2500 Regions Visited (18) 3600 Robots Destroyed (333) 1665 Value Destroyed (11621) 11621 Prototype IDs (55) 1100 Alien Tech Used (0) 0 Bonus (2983) 2983 TOTAL SCORE: 23469 Bonus ------- High Alert Combat Kills 458 Follower Combat Kills 791 Met Data Miner 300 Met Warlord at Base 500 MAIN.C Attacked Warlord 500 Warlord Defense Kills 838 Friendly Fire -404 Cogmind --------- Core Integrity 424/1000 Matter 260/300 Energy 282/700 System Corruption 0% Temperature Cool (9) Movement Walking (168) Ox1 Location -5/Warlord Parts ------- > --- POWER (2) -------- Vortex Chain Reactor > --- PROPULSION (5) --- Improved VSS Leg Experimental Myomer Leg Experimental Myomer Leg > --- UTILITY (6) ------ Advanced Heat Sink High-capacity Storage Unit Improved Signal Interpreter Core Analyzer Improved Weapon Cycler > --- WEAPON (4) ------- (None) > --- INVENTORY (20) --- Advanced Heat Sink Improved Energy Well (400) Experimental Matter Compressor (299) Machine Analyzer Improved Sensor Array Particle Charger Experimental Phase Shifter Hardened Light Armor Plating Layered Light Armor Plating Long-range Proton Cannon Long-range Proton Cannon Advanced Plasma Cannon Vortex Cannon Vortex Cannon Scatter Rocket Array RU-N14's Throwing Claymores v3 (5) Peak State ------------ > --- POWER ------------ Light Angular Momentum Engine Cooled Fission Core > --- PROPULSION ------- Improved Titanium Leg Improved Titanium Leg Improved Titanium Leg Flexi-carbon Leg Experimental Myomer Leg > --- UTILITY ---------- Advanced Heat Sink High-capacity Storage Unit Improved Signal Interpreter Core Analyzer Improved Weapon Cycler Makeshift Ablative Armor > --- WEAPON ----------- Cooled Plasma Rifle Cooled Plasma Rifle Cooled Phase Cannon Plasma Sword > --- INVENTORY -------- Vortex Chain Reactor Improved VSS Leg Experimental Myomer Leg Advanced Heat Sink Improved Energy Well Experimental Matter Compressor Machine Analyzer Improved Sensor Array Particle Charger Experimental Phase Shifter Hardened Light Armor Plating Layered Light Armor Plating Long-range Proton Cannon Long-range Proton Cannon Advanced Plasma Cannon Vortex Cannon Vortex Cannon Scatter Rocket Array RU-N14's Throwing Claymores v3 [Rating: 104] Favorites ----------- Power Heavy Ion Engine Engine Heavy Ion Engine Power Core Cooled Fission Core Reactor Vortex Chain Reactor Propulsion Improved Treads Treads Improved Treads Leg Improved Carbon-fiber Leg Flight Unit Improved VTOL Module Utility Huge Storage Unit Device Improved Sensor Array Storage Huge Storage Unit Processor Improved Signal Interpreter Hackware Hacking Suite Protection Layered Medium Armor Plating Weapon Enhanced Autogun Energy Gun Cooled Plasma Rifle Energy Cannon Cooled Phase Cannon Ballistic Gun Enhanced Autogun Ballistic Cannon Heavy Flak Cannon Launcher Heavy Rocket Launcher Special Weapon RU-N14's Throwing Claymores v3 Impact Weapon Powered Hammer Slashing Weapon Plasma Sword Piercing Weapon Kinetic Spear Special Melee Weapon Datajack Build | -11 -10 -10 -9 -9 -9 -8 -8 -7 -7 -7 -7 -6 -6 -6 -5 -5 -5 -5 ------- Run | Yrd Mat Min Mat Min Exi Min Mat Fac Low Low Dat Pro Fac Ext Fac Upp Upp War Slots Evolved 10 | . . . 2 . . . 2 2 . . . . 2 . 2 . . . Power 1 | . . . . . . . . . . . . . . . 1 . . . Propulsion 3 | . . . . . . . 2 . . . . . 1 . . . . . Utility 4 | . . . 1 . . . . 2 . . . . 1 . . . . . Weapon 2 | . . . 1 . . . . . . . . . . . 1 . . . Parts Attached 209 | 7 10 . 23 4 2 2 10 39 4 6 . 7 29 18 35 . 4 9 Power 27 | 1 1 . 4 . . . . 3 . 3 . . 5 2 6 . 1 1 Engine 14 | 1 1 . 3 . . . . 3 . 2 . . 2 1 . . 1 . Core 12 | . . . 1 . . . . . . 1 . . 3 1 6 . . . Reactor 1 | . . . . . . . . . . . . . . . . . . 1 Propulsion 64 | 2 2 . 10 . . 2 5 14 . 2 . 1 9 3 9 . 2 3 Treads 28 | 2 2 . 10 . . 2 5 7 . . . . . . . . . . Leg 35 | . . . . . . . . 6 . 2 . 1 9 3 9 . 2 3 Wheel . | . . . . . . . . . . . . . . . . . . . Hover . | . . . . . . . . . . . . . . . . . . . Flight 1 | . . . . . . . . 1 . . . . . . . . . . Utility 64 | 2 2 . 3 1 1 . 3 14 3 1 . 1 6 10 13 . 1 3 Device 21 | 1 . . . 1 1 . 2 4 . . . . 2 6 2 . 1 1 Storage 10 | 1 1 . 1 . . . . 1 1 . . . 2 1 1 . . 1 Processor 11 | . . . 1 . . . 1 5 2 . . . 1 . 1 . . . Hackware 6 | . . . . . . . . 1 . . . . 1 1 3 . . . Protection 16 | . 1 . 1 . . . . 3 . 1 . 1 . 2 6 . . 1 Artifact . | . . . . . . . . . . . . . . . . . . . Weapon 54 | 2 5 . 6 3 1 . 2 8 1 . . 5 9 3 7 . . 2 Energy Gun 9 | 1 . . . . . . . 1 1 . . 1 1 2 1 . . 1 Energy Cannon 5 | . . . . . . . . . . . . . 4 . 1 . . . Ballistic Gun 26 | 1 5 . 5 3 . . 2 5 . . . 2 2 . 1 . . . Ballistic Cannon 3 | . . . . . . . . . . . . . 2 1 . . . . Launcher 4 | . . . 1 . . . . . . . . 1 . . 2 . . . Special Weapon 2 | . . . . . . . . . . . . 1 . . . . . 1 Impact Weapon 1 | . . . . . . . . 1 . . . . . . . . . . Slashing Weapon 1 | . . . . . . . . . . . . . . . 1 . . . Piercing Weapon 1 | . . . . . . . . . . . . . . . 1 . . . Special Melee Weapon 2 | . . . . . 1 . . 1 . . . . . . . . . . Unidentified Prototypes 20 | . . . 3 . . . . 3 . . . . 4 1 5 . . 4 Parts Lost 67 | . 3 . 1 . . 2 6 9 . 2 . 2 22 4 4 . 4 8 Power 13 | . . . 1 . . . . 1 . 1 . . 4 1 2 . 1 2 Propulsion 18 | . 1 . . . . 2 1 3 . . . . 5 1 2 . 1 2 Utility 19 | . 1 . . . . . 1 5 . 1 . 1 6 2 . . 1 1 Weapon 17 | . 1 . . . . . 4 . . . . 1 7 . . . 1 3 Highest Loss Streak 12 | . 3 . 1 . . 2 2 2 . 2 . 1 12 4 2 . 2 8 To Critical Strikes 2 | . . . . . . . . . . . . 1 . . . . . 1 Average Backups 19 | . 8 10 19 25 23 23 23 21 16 18 20 19 18 19 18 19 19 19 Power 1 | . 1 1 1 2 2 2 2 1 1 . 1 1 1 1 . . . . Propulsion 4 | . 2 4 7 7 7 6 3 5 3 4 6 6 3 . . 2 3 2 Utility 6 | . . . 4 8 8 9 11 8 4 4 5 4 4 3 9 9 8 8 Weapon 5 | . 3 4 5 7 5 5 4 4 5 6 6 5 7 11 7 7 6 6 Tool/Special . | . . . . . . . . . . . . . . . . . . . Unused Backups 49 | . 4 . 10 . . . . 12 1 . . . 1 3 5 . . 13 Power 3 | . . . 1 . . . . 2 . . . . . . . . . . Propulsion 11 | . . . 4 . . . . 5 . . . . 1 . . . . 1 Utility 15 | . 2 . 1 . . . . 3 . . . . . . 3 . . 6 Weapon 19 | . 2 . 4 . . . . 2 1 . . . . 3 2 . . 5 Tool/Special 1 | . . . . . . . . . . . . . . . . . . 1 Average Slot Usage (%) 98 | . 95 100 99 100 96 99 99 99 100 100 82 99 95 99 98 99 98 99 Engine 7 | . 13 14 10 11 11 11 9 6 7 7 7 7 4 . 1 . . 4 Core 2 | . . . . . . . . . . . . . 1 5 8 11 8 4 Treads 14 | . 27 28 22 22 22 21 35 22 . . . . . . . . . . Leg 13 | . . . . . . . . 7 30 30 30 30 32 32 28 29 29 28 Device 9 | . 8 14 7 10 9 11 9 8 7 6 7 6 5 16 9 11 11 11 Storage 8 | . 14 14 11 11 11 11 9 7 7 7 7 7 7 9 5 5 5 5 Processor 11 | . . . 10 11 11 11 9 12 23 23 23 23 18 12 8 11 11 11 Protection 2 | . 2 . 3 . . . . 7 . . . . 1 . 7 5 4 4 Energy Gun 3 | . . . . . . . . . . . . . . 3 16 16 13 10 Ballistic Gun 20 | . 27 28 32 33 29 32 27 22 22 23 5 22 13 . . . . . Peak Build Rating 104 | 7 10 10 24 29 31 29 35 52 51 51 51 52 71 80 97 94 95 104 Average Rating 45 | 5 7 10 18 25 28 28 31 40 50 50 40 51 58 74 90 93 91 95 On Entrance 44 | . 7 10 10 23 29 29 29 29 50 50 51 50 52 70 74 94 91 91 Avg Prop Armor Cover (%) . | . . . . . . . . . . . . . . . . . . . Naked Turns . | . . . . . . . . . . . . . . . . . . . Heaviest Build 113 | 14 22 22 102 102 102 99 99 113 68 68 68 71 78 88 103 95 97 100 Greatest Support 105 | 40 40 40 46 46 46 46 92 89 66 71 71 71 86 95 99 94 94 105 Greatest Overweight (x) 6 | . 6 . 2 2 2 2 1 1 1 1 . . 1 1 1 1 1 1 Average Overweight (x) . | . . . 1 2 1 2 1 . . . . . . . . . . . Largest Inventory Capacity 25 | 8 10 10 25 25 25 25 25 25 20 20 20 20 20 20 20 20 20 20 Average Capacity 20 | 7 9 10 21 25 25 25 25 22 17 20 20 20 20 20 20 20 20 20 Most Carried 25 | 1 10 10 25 25 25 24 25 25 18 20 20 20 20 20 20 20 20 20 Average Carried 19 | . 8 10 19 25 23 23 23 21 16 18 20 19 18 19 18 19 19 19 Final Capacity 25 | 8 10 10 25 25 25 25 25 15 20 20 20 20 20 20 20 20 20 20 Final Carried 25 | 1 10 10 25 25 24 22 25 15 18 20 20 20 20 16 19 20 19 16 Class Distribution -------------------- 59% | Gunner 13% | Mutant 9% | Skirmisher 5% | Scavenger-Skirmisher 3% | Scavenger-Tank 3% | Scavenger-Gunner Dominant Class ---------------- Mutant | -10/Materials Mutant | -10/Mines Gunner | -9/Materials Gunner | -9/Mines Gunner | -9/Exiles Gunner | -8/Mines Gunner | -8/Materials Gunner | -7/Factory Gunner | -7/Lower Caves Gunner | -7/Lower Caves Mutant | -7/Data Miner Gunner | -6/Proximity Caves Mutant | -6/Factory Gunner | -6/Extension Scavenger-Skirmisher | -5/Factory Skirmisher | -5/Upper Caves Skirmisher | -5/Upper Caves Skirmisher | -5/Warlord Resources | -11 -10 -10 -9 -9 -9 -8 -8 -7 -7 -7 -7 -6 -6 -6 -5 -5 -5 -5 ----------- Run | Yrd Mat Min Mat Min Exi Min Mat Fac Low Low Dat Pro Fac Ext Fac Upp Upp War Matter Collected 11627 | 288 512 33 1319 455 94 336 1288 1402 215 406 . 455 1231 1177 886 376 500 654 Remotely 1004 | . . . . . . . 200 51 . . . . 753 . . . . . Salvage Created 12854 | 143 761 . 1961 411 94 358 1844 1588 25 423 . 358 1075 707 1640 487 591 388 Parts 661 | 9 62 . 130 13 7 10 108 87 . 17 . 23 50 23 66 23 12 21 Haulers Intercepted 18 | . 2 . 6 . . . 6 2 . . . . 1 . 1 . . . Recyclers Shooed 6 | . . . 2 . . . . 1 . . . . . . 3 . . . Parts Field Recycled . | . . . . . . . . . . . . . . . . . . . Retrieved Matter . | . . . . . . . . . . . . . . . . . . . Parts Self-Destructed 60 | . . . . . . . . . 1 16 . 21 . . . 18 4 . Prevented 9 | . . . . . . . . . 4 . . . . . . 3 2 . Parts Restored . | . . . . . . . . . . . . . . . . . . . Kills | -11 -10 -10 -9 -9 -9 -8 -8 -7 -7 -7 -7 -6 -6 -6 -5 -5 -5 -5 ------- Run | Yrd Mat Min Mat Min Exi Min Mat Fac Low Low Dat Pro Fac Ext Fac Upp Upp War Combat Hostiles Destroyed 260 | . 17 . 42 8 . 9 35 26 . 9 . 16 28 10 29 8 15 8 Melee 2 | . . . . . . . . . . . . . . . . . 2 . Guns 170 | . 17 . 35 8 . 4 32 26 . 9 . 5 10 3 15 4 1 1 Cannons 17 | . . . . . . . . . . . . . 3 5 4 . 3 2 AOE 68 | . . . 7 . . 5 3 . . . . 11 15 1 8 4 9 5 Classes Destroyed 21 | 2 6 . 3 1 . . 2 1 . 1 . 2 2 1 . . . . Worker 13 | . 2 . . 2 . . 2 1 . . . . 1 . 5 . . . Builder 13 | . . . . . . . 2 5 . . . . 6 . . . . . Tunneler 3 | 3 . . . . . . . . . . . . . . . . . . Hauler 18 | . 2 . 6 . . . 6 2 . . . . 1 . 1 . . . Recycler 9 | 1 1 . . 1 . 1 1 1 . . . . 1 2 . . . . Minesweeper 1 | . . . . . . . . . . . . 1 . . . . . . Operator 4 | . 1 . 1 . . . . 1 . . . . 1 . . . . . Drone 2 | . . . . . . . . . . . . 2 . . . . . . Watcher 10 | . 1 . 5 . . . 1 . . . . . . . 3 . . . Swarmer 62 | . 6 . 6 2 . 3 7 5 . 2 . 6 7 2 9 4 3 . Saboteur 2 | . . . . . . . . . . . . . 1 . . . . 1 Grunt 107 | . 11 . 22 5 . 6 20 10 . 3 . 6 6 1 5 4 4 4 Brawler 11 | . . . 3 . . . 1 1 . . . . . . 2 . 4 . Duelist 4 | . . . . 1 . . . . . 1 . . . . . . 2 . Protector 5 | . . . 2 . . . . . . . . . 2 . . . . 1 Sentry 30 | . . . 9 . . . 6 4 . 1 . . 1 5 3 . 1 . Specialist 2 | . . . . . . . . . . . . . 2 . . . . . Hunter 13 | . . . . . . . 1 2 . . . 1 4 . 4 . 1 . Programmer 21 | . . . . . . . . 4 . 2 . 1 5 1 6 . . 2 Behemoth 1 | . . . . . . . . . . . . . . 1 . . . . Decomposer 1 | . . . . . . . . . 1 . . . . . . . . . Packrat 3 | . . . . . . . . . . . . . . . . . 3 . Samaritan 3 | . . . . . . . . . . 1 . . . . . 2 . . Butcher 1 | . . . . . . . . . . . . . . . . . . 1 Sapper 1 | . . . . . . . . . . . . . . . . . . 1 Best Kill Streak 13 | 4 4 . 13 3 . 3 9 7 . 5 . 7 9 3 8 4 10 5 Combat Bots Only 10 | . 4 . 10 3 . 3 8 5 . 5 . 7 7 3 6 4 10 5 Max Kills in Single Turn 5 | 1 1 . 5 2 . 2 3 2 1 1 . 3 5 1 5 2 5 4 Gunslinging 1 | . . . 1 1 . . . . . . . . . . . . . . Exploded 5 | . . . 4 . . 2 2 . . . . 3 5 1 5 2 5 4 Melee 1 | . . . . . . . . . . . . . . . . . 1 . Uniques/NPCs Destroyed . | . . . . . . . . . . . . . . . . . . . Combat | -11 -10 -10 -9 -9 -9 -8 -8 -7 -7 -7 -7 -6 -6 -6 -5 -5 -5 -5 -------- Run | Yrd Mat Min Mat Min Exi Min Mat Fac Low Low Dat Pro Fac Ext Fac Upp Upp War Hostile Shots Fired 1674 | . 115 2 94 44 . 21 168 248 . 57 . 61 358 154 170 17 55 110 Missed 576 | . 43 . 28 12 . 4 51 86 . 10 . 22 155 64 49 5 21 26 Hits 1098 | . 72 2 66 32 . 17 117 162 . 47 . 39 203 90 121 12 34 84 Melee 11 | . . . 1 2 . . . 2 . 3 . . . . 1 . . 2 Projectile 1087 | . 72 2 65 30 . 17 117 160 . 44 . 39 203 90 120 12 34 82 AOE 5 | . . . . . . . . . . . . . . . 2 . . 3 Critical Strikes 45 | . . . 3 1 . . 5 4 . 4 . 3 9 1 5 1 . 9 Part Disruptions 1 | . . . . . . . . . . . . . . . 1 . . . Damage Taken 17391 | . 772 18 870 450 . 250 1563 1849 . 844 . 601 4235 803 2475 262 716 1683 Core 2279 | . 110 . 204 43 . 50 155 117 . 163 . 103 677 81 295 15 20 246 Absorbed by Shields 252 | . . . . . . . . . . . . . . 123 . . . 129 Redirected to Shielding 258 | . . . . . . . . . . . . . . . 220 . 38 . Ignored by Resistances 42 | . . . . . . . . . . . . . . . 42 . . . Regen/Repaired (Parts) 310 | . . . . . . . 82 . . . . . . . . . . 228 Core Remaining (%) 51 | 100 . 56 . . . 25 71 . . . . 45 . 10 . . . . Volleys Fired 609 | 6 59 . 77 23 4 16 100 75 . 22 . 19 56 24 85 12 14 17 Largest 4 | 2 2 . 3 3 3 3 3 3 . 3 . 3 3 3 4 4 3 3 Hottest 243 | 60 46 . 82 75 75 86 75 84 . 81 . 81 121 132 243 227 129 88 Shots Fired 1654 | 12 118 . 231 68 12 48 294 223 . 66 . 43 117 64 250 35 30 43 Gun 1471 | 12 118 . 227 68 12 43 292 223 . 66 . 35 87 26 188 29 19 26 Cannon 132 | . . . . . . . . . . . . . 15 37 55 4 7 14 Launcher 51 | . . . 4 . . 5 2 . . . . 8 15 1 7 2 4 3 Special . | . . . . . . . . . . . . . . . . . . . Kinetic 1206 | 6 118 . 227 68 12 43 292 223 . 66 . 35 94 22 . . . . Thermal 397 | 6 . . . . . . . . . . . . 8 41 243 33 26 40 Explosive 51 | . . . 4 . . 5 2 . . . . 8 15 1 7 2 4 3 Electromagnetic . | . . . . . . . . . . . . . . . . . . . Robot Hit Streak 56 | 4 15 . 56 13 7 10 20 26 . 13 . 6 10 9 12 4 3 6 Robot Miss Streak 10 | 2 4 . 2 2 1 2 3 5 . 5 . 3 5 5 4 4 8 10 Penetration Max 1 | . . . . . . . . 1 . 1 . . 1 . . . . . Secondary Targets 24 | . 1 . 2 2 . . 9 2 . 2 . 1 3 . 2 . . . Max Gunslinging Chain 2 | . 1 . 2 1 . . 1 1 . 1 . 1 1 . 1 . . . Shots Hit Robots 1100 | 7 72 . 162 52 8 27 213 157 . 54 . 27 92 47 122 17 21 22 Core Hits 731 | 4 31 . 85 13 2 16 83 76 1 37 . 46 94 45 74 14 65 45 Critical Kills 5 | . . . . . . . . 1 . . . 1 1 . 2 . . . Critical Parts Destroyed 13 | 1 . . 3 2 . . 1 . . . . . 3 . 2 1 . . Critical Strikes 28 | 1 . . 3 2 . . 1 1 . . . 1 4 . 11 2 1 1 Burn 9 | . . . . . . . . . . . . . . . 7 1 . 1 Destroy 18 | 1 . . 3 2 . . 1 1 . . . 1 4 . 4 1 . . Sever 1 | . . . . . . . . . . . . . . . . . 1 . Melee Attacks 94 | . . . . . 1 . . 5 . 1 . 4 42 . 16 17 8 . Impact 51 | . . . . . . . . 4 . 1 . 4 42 . . . . . Slashing 41 | . . . . . . . . . . . . . . . 16 17 8 . Piercing . | . . . . . . . . . . . . . . . . . . . Sneak Attacks 16 | . . . . . 1 . . 1 . . . . 2 . 2 4 6 . Combat Hostiles . | . . . . . . . . . . . . . . . . . . . Follow-up Attacks . | . . . . . . . . . . . . . . . . . . . Damage Inflicted 31999 | 86 1013 18 3333 895 128 975 3656 3066 25 1099 . 1671 4461 1654 4954 993 2645 1327 Guns 18444 | 83 1001 . 2509 850 128 429 3332 3043 . 1083 . 454 1186 442 2913 292 248 451 Cannons 2730 | . . . . . . . . . . . . . 309 1074 1016 . 119 212 Explosions 9129 | . . . 792 . . 536 268 . . . . 1217 2740 138 817 175 1782 664 Melee 1407 | . . . . . . . . . . . . . 211 . 174 526 496 . Ramming 289 | 3 12 18 32 45 . 10 56 23 25 16 . . 15 . 34 . . . Kinetic 14794 | 63 1001 . 2509 850 128 429 3332 3043 . 1083 . 454 1282 620 . . . . Thermal 6380 | 20 . . . . . . . . . . . . 213 896 3929 292 367 663 Explosive 9129 | . . . 792 . . 536 268 . . . . 1217 2740 138 817 175 1782 664 Electromagnetic . | . . . . . . . . . . . . . . . . . . . Impact 211 | . . . . . . . . . . . . . 211 . . . . . Slashing 1196 | . . . . . . . . . . . . . . . 174 526 496 . Piercing . | . . . . . . . . . . . . . . . . . . . Highest Corruption 16 | . . . 7 7 7 . . 5 . 1 1 1 15 15 16 16 16 16 Average Corruption 7 | . . . 6 7 4 . . 3 . 1 1 1 5 8 11 16 16 16 Corruption Purged 27 | . . . . . 7 . . 5 . . . . . 15 . . . . Corruption Blocked . | . . . . . . . . . . . . . . . . . . . Effects 371 | . . . 23 55 30 . . 44 . 4 2 11 19 14 77 47 43 2 Message Errors 105 | . . . 9 14 14 . . 8 . 1 . 4 7 1 19 14 13 1 Matter Fused 85 | . . . 2 15 6 . . 10 . 1 . 1 5 6 18 9 12 . Heat Flow Errors 44 | . . . . 9 2 . . 6 . . . 1 1 2 11 9 2 1 Energy Discharges 41 | . . . 2 5 4 . . 10 . . 2 2 2 . 6 4 4 . Parts Rejected 6 | . . . . . . . . . . . . . 1 . 3 1 1 . Parts Fused 5 | . . . . . . . . 1 . . . . . 1 . 2 1 . Data Loss (minor) 39 | . . . 6 7 . . . 6 . 1 . 1 1 . 9 4 4 . Data Loss (major) 14 | . . . . 2 2 . . . . 1 . . . 2 3 1 3 . Misfires 14 | . . . 3 1 1 . . . . . . 2 . . 4 3 . . Alerts 5 | . . . . . . . . 1 . . . . 1 . 1 . 2 . Weapon Failures 13 | . . . 1 2 1 . . 2 . . . . 1 2 3 . 1 . Overload Shots . | . . . . . . . . . . . . . . . . . . . Overflow Damage 879 | . . . 11 . . 48 12 . 13 10 . 38 251 1 81 253 161 . Projectiles 50 | . . . . . . . . . . . . . 25 . 25 . . . Explosions 274 | . . . 11 . . 48 12 . . . . 38 140 1 . 18 6 . Melee 555 | . . . . . . . . . 13 10 . . 86 . 56 235 155 . Knockbacks 13 | . . . . 1 . . . . 1 . . . 5 6 . . . . Impact 3 | . . . . 1 . . . . 1 . . . 1 . . . . . Kinetic 10 | . . . . . . . . . . . . . 4 6 . . . . Secondary . | . . . . . . . . . . . . . . . . . . . Self-Inflicted Damage 227 | . . . . . . . . . . . . . . . 77 . 107 43 Shots 8 | . . . . . . . . . . . . . . . 2 . 4 2 Rammed 33 | 1 4 5 8 3 . 2 7 3 . . . . . . . . . . Targets Rammed 48 | 1 5 5 8 4 . 2 9 4 3 1 . . 2 . 4 . . . Kicked 10 | . . . . . . . . . 3 1 . . 2 . 4 . . . Crushed 5 | . 1 . . 1 . . 2 1 . . . . . . . . . . Highest Temperature 386 | . 12 . 386 280 178 23 118 227 . 220 . 205 230 260 386 241 187 202 Average Temperature 72 | . 4 . 55 96 87 7 31 73 . 65 . 63 45 74 101 83 69 97 Received Heat Transfer 4343 | . 300 . 339 186 . 126 693 495 . 225 . 144 888 138 276 45 111 377 Effects 8 | . . . . 5 . . . 1 . . . . . . 2 . . . Shutdowns 2 | . . . . . . . . . . . . . . . 2 . . . Interference 6 | . . . . 5 . . . 1 . . . . . . . . . . Siege Activations . | . . . . . . . . . . . . . . . . . . . Martial Activations . | . . . . . . . . . . . . . . . . . . . Shielding Activations . | . . . . . . . . . . . . . . . . . . . Robots Disrupted . | . . . . . . . . . . . . . . . . . . . Combat Hostiles . | . . . . . . . . . . . . . . . . . . . Robots Corrupted 4 | . . . . 1 . . . . . 1 . . 2 . . . . . Combat Hostiles . | . . . . . . . . . . . . . . . . . . . Parts Fried 5 | . . . . 2 . . . . . . . . 2 1 . . . . Impact Corruptions 9 | . . . . 1 . . . . 1 2 . . 5 . . . . . Robots Melted 4 | . . . . . . . . . . . . . . 1 3 . . . Combat Hostiles 3 | . . . . . . . . . . . . . . 1 2 . . . Parts Melted 37 | . . . . . . . . . . . . . . 3 29 2 2 1 Heat Transferred 10775 | 50 . . . . . . . . . . . . 222 1294 7015 624 561 1009 Parts Sabotaged 4 | . . . . . . . . . . . . . . . . . . 4 Parts Stolen . | . . . . . . . . . . . . . . . . . . . Parts Stripped . | . . . . . . . . . . . . . . . . . . . Power Chain Reactions . | . . . . . . . . . . . . . . . . . . . Alert | -11 -10 -10 -9 -9 -9 -8 -8 -7 -7 -7 -7 -6 -6 -6 -5 -5 -5 -5 ------- Run | Yrd Mat Min Mat Min Exi Min Mat Fac Low Low Dat Pro Fac Ext Fac Upp Upp War Maximum Alert Level 3 | . 1 . 3 1 . . 2 1 . . . . 2 2 2 . . . Low Security (%) 61 | 100 64 100 72 91 . 100 27 42 . . . . 61 39 43 . . . Level 1 22 | . 35 . 14 8 . . 15 57 . . . . 4 59 25 . . . Level 2 15 | . . . 10 . . . 56 . . . . . 33 1 31 . . . Level 3 . | . . . 2 . . . . . . . . . . . . . . . Level 4 . | . . . . . . . . . . . . . . . . . . . Level 5 . | . . . . . . . . . . . . . . . . . . . High Security . | . . . . . . . . . . . . . . . . . . . Max Security . | . . . . . . . . . . . . . . . . . . . Peak Influence 709 | 15 267 103 709 274 . 91 491 315 . . . . 489 405 684 . . . Initial 274 | . . 103 . 274 . . . 219 . . . . 171 206 169 . . . Average 179 | 3 132 19 170 62 . 19 329 191 . . . . 201 239 292 . . . Influence Increases 8771 | 20 664 81 1282 210 . 257 1065 803 . 190 . 340 1105 681 1206 195 350 322 Destroy 0b10 Robot/C 5460 | . 340 60 800 160 . 180 700 520 . 180 . 280 520 360 660 160 300 240 Destroy 0b10 Robot/NC 415 | 20 35 . 70 15 . 5 60 50 . . . 15 60 15 50 10 . 10 Destroy Leader 1080 | . 96 10 222 20 . 30 184 144 . 10 . 30 82 52 170 10 20 . Allied During Kill 332 | . . 11 9 . . 3 . . . . . . . 218 19 . . 72 Successful Hack 300 | . 41 . 98 . . . 22 21 . . . . 65 10 43 . . . Select Force Hacks 150 | . 60 . 60 . . . 30 . . . . . . . . . . . Disable Machine 315 | . . . . . . . 60 45 . . . . 90 . 120 . . . Destroy Structure 344 | . 2 . 23 . . 39 9 8 . . . . 108 11 144 . . . Advance Influence 150 | . . . . . . . . . . . . . 150 . . . . . Partial Spotted 15 | . . . . . . . . . . . . . 15 . . . . . Lose Combat Pursuer 210 | . 90 . . 15 . . . 15 . . . 15 15 15 . 15 30 . Influence Decreases 8659 | 20 397 348 576 858 58 257 581 995 292 190 . 306 717 756 871 663 465 309 Entered New Map 1829 | . . 164 . 432 58 . . 265 109 . . . 13 216 178 253 42 99 Time Decay 5861 | 20 367 184 506 426 . 238 521 640 183 170 . 296 484 380 603 410 393 40 Lost Part 629 | . 30 . 10 . . 19 60 80 . 20 . 10 220 40 30 . 30 80 Lost Ally 340 | . . . 60 . . . . 10 . . . . . 120 60 . . 90 Squads Dispatched 47 | . 6 . 6 . . . 7 9 . . . . 7 1 10 . 1 . Investigation 17 | . 4 . 3 . . . 4 1 . . . . 1 1 3 . . . Extermination 11 | . . . . . . . . 5 . . . . 2 . 4 . . . Reinforcement 13 | . 2 . 1 . . . 2 3 . . . . 3 . 2 . . . Assault 4 | . . . 2 . . . . . . . . . . . 1 . 1 . Garrison 2 | . . . . . . . 1 . . . . . 1 . . . . . Intercept . | . . . . . . . . . . . . . . . . . . . Searches Triggered . | . . . . . . . . . . . . . . . . . . . Data Miner Redirects 3 | . . . . . . . . . . . . . . 1 2 . . . Construction Impeded 3 | . . . 1 . . . 1 . . . . . 1 . . . . . Haulers Reinforced 1 | . . . . . . . . 1 . . . . . . . . . . Active Scanning Responses . | . . . . . . . . . . . . . . . . . . . Cargo Convoy Interrupts 1 | . . . . . . . . . . . . . 1 . . . . . Stealth | -11 -10 -10 -9 -9 -9 -8 -8 -7 -7 -7 -7 -6 -6 -6 -5 -5 -5 -5 --------- Run | Yrd Mat Min Mat Min Exi Min Mat Fac Low Low Dat Pro Fac Ext Fac Upp Upp War Distress Signals 14 | . 3 . 3 . . . 2 1 . . . . 1 2 2 . . . Communications Jammed . | . . . . . . . . . . . . . . . . . . . Distress Signals . | . . . . . . . . . . . . . . . . . . . Times Spotted 393 | . 36 3 53 10 . 9 43 35 . 9 . 15 47 18 41 9 16 49 Peak Tracking Total 21 | . 9 3 10 3 . 3 6 5 . 4 . 7 14 5 6 3 9 21 Tactical Retreats 13 | . 5 . . 1 . . . 1 . . . 1 1 1 . 1 2 . Traps | -11 -10 -10 -9 -9 -9 -8 -8 -7 -7 -7 -7 -6 -6 -6 -5 -5 -5 -5 ------- Run | Yrd Mat Min Mat Min Exi Min Mat Fac Low Low Dat Pro Fac Ext Fac Upp Upp War Traps Triggered 21 | . 5 . 4 . . . 1 4 . . . . . . 6 1 . . Indirectly . | . . . . . . . . . . . . . . . . . . . Trap Hack Attempts 14 | . . . . . . . . 14 . . . . . . . . . . Triggered . | . . . . . . . . . . . . . . . . . . . Disarmed . | . . . . . . . . . . . . . . . . . . . Reprogrammed 1 | . . . . . . . . 1 . . . . . . . . . . Reused . | . . . . . . . . . . . . . . . . . . . Traps Extracted . | . . . . . . . . . . . . . . . . . . . Installed . | . . . . . . . . . . . . . . . . . . . Triggered . | . . . . . . . . . . . . . . . . . . . Machines | -11 -10 -10 -9 -9 -9 -8 -8 -7 -7 -7 -7 -6 -6 -6 -5 -5 -5 -5 ---------- Run | Yrd Mat Min Mat Min Exi Min Mat Fac Low Low Dat Pro Fac Ext Fac Upp Upp War Machines Disabled 24 | . . . 2 . . . 4 3 . 1 . . 6 . 8 . . . Max in Single Turn 2 | . . . 1 . . . 1 1 . 1 . . 1 . 2 . . . Garrison Access 1 | . . . . . . . 1 . . . . . . . . . . . Machines Repaired . | . . . . . . . . . . . . . . . . . . . Machines Dismantled . | . . . . . . . . . . . . . . . . . . . Machines Sabotaged . | . . . . . . . . . . . . . . . . . . . Overloaded Fab Kills . | . . . . . . . . . . . . . . . . . . . Hacking | -11 -10 -10 -9 -9 -9 -8 -8 -7 -7 -7 -7 -6 -6 -6 -5 -5 -5 -5 --------- Run | Yrd Mat Min Mat Min Exi Min Mat Fac Low Low Dat Pro Fac Ext Fac Upp Upp War Machines Accessed 91 | . 9 . 16 . 2 . 13 11 . . 3 . 16 6 14 . . 1 Terminals 56 | . 7 . 12 . . . 9 7 . . . . 10 5 6 . . . Fabricators 9 | . . . . . . . . 3 . . . . 2 . 4 . . . Repair Stations 3 | . . . . . . . 1 . . . . . 1 . 1 . . . Recycling Units 8 | . 2 . 2 . . . 1 . . . . . 1 1 1 . . . Scanalyzers 8 | . . . 2 . . . 1 1 . . . . 2 . 2 . . . Garrison Access 1 | . . . . . . . 1 . . . . . . . . . . . Total Hacks 264 | . 32 . 54 . 24 . 32 26 . . 26 . 29 9 31 . . 1 Successful 158 | . 16 . 37 . 24 . 16 9 . . 26 . 11 3 15 . . 1 Failed 104 | . 16 . 16 . . . 15 17 . . . . 18 6 16 . . . Catastrophic 17 | . . . 1 . . . 1 2 . . . . 7 2 4 . . . Database Lockouts 2 | . . . 1 . . . 1 . . . . . . . . . . . Manual 126 | . 22 . 42 . 1 . 26 14 . . . . 11 1 8 . . 1 Terminals 153 | . 28 . 46 . . . 25 20 . . . . 16 8 10 . . . Fabricators 25 | . . . . . . . . 5 . . . . 5 . 15 . . . Repair Stations 3 | . . . . . . . 1 . . . . . 1 . 1 . . . Recycling Units 16 | . 4 . 3 . . . 2 . . . . . 5 1 1 . . . Scanalyzers 14 | . . . 5 . . . 2 1 . . . . 2 . 4 . . . Garrison Access 2 | . . . . . . . 2 . . . . . . . . . . . Terminal Hacks 80 | . 5 . 10 . 24 . 2 3 . . 26 . 4 2 3 . . 1 Record 29 | . . . . . 23 . . . . . 6 . . . . . . . Part Schematic 13 | . . . . . . . . . . . 13 . . . . . . . Robot Schematic 4 | . . . . . . . . . . . 4 . . . . . . . Robot Analysis 4 | . 4 . . . . . . . . . . . . . . . . . Prototype ID Bank 4 | . . . 1 . . . . . . . 3 . . . . . . . Open Door 2 | . . . . . . . . . . . . . 1 . . . . 1 Branch Access Points 5 | . . . 1 . . . 1 1 . . . . 1 . 1 . . . Emergency Access Points 1 | . . . 1 . . . . . . . . . . . . . . . Terminal Index 4 | . . . 2 . . . 1 1 . . . . . . . . . . Locate Traps 1 | . . . 1 . . . . . . . . . . . . . . . Security Status 1 | . . . 1 . . . . . . . . . . . . . . . Transport Status 1 | . . . 1 . . . . . . . . . . . . . . . Reinforcement Status 1 | . . . . . . . . . . . . . . 1 . . . . Hauler Manifests 5 | . . . 1 . . . . 1 . . . . 1 1 1 . . . Registered Components 2 | . . . 1 . . . . . . . . . . . 1 . . . Zone Layout 2 | . 1 . . . . . . . . . . . 1 . . . . . Proto ID Catalog 1 | . . . . . 1 . . . . . . . . . . . . . Fabricator Hacks 12 | . . . . . . . . 3 . . . . 2 . 7 . . . Network Status 5 | . . . . . . . . 3 . . . . 1 . 1 . . . Load Schematic 5 | . . . . . . . . . . . . . 1 . 4 . . . Build 2 | . . . . . . . . . . . . . . . 2 . . . Repair Station Hacks . | . . . . . . . . . . . . . . . . . . . Recycling Unit Hacks 4 | . 1 . 1 . . . . . . . . . 1 1 . . . . Retrieve Components 4 | . 1 . 1 . . . . . . . . . 1 1 . . . . Scanalyzer 8 | . . . 4 . . . 1 . . . . . . . 3 . . . Insert Component 1 | . . . 1 . . . . . . . . . . . . . . . Analyze 1 | . . . 1 . . . . . . . . . . . . . . . Retrieve Study 6 | . . . 2 . . . 1 . . . . . . . 3 . . . Garrison Access Hacks 1 | . . . . . . . 1 . . . . . . . . . . . Seal Access 1 | . . . . . . . 1 . . . . . . . . . . . Unauthorized Hacks 53 | . 10 . 22 . . . 12 3 . . . . 4 . 2 . . . Terminals 42 | . 8 . 20 . . . 10 2 . . . . 2 . . . . . Track 3 | . . . 2 . . . . . . . . . 1 . . . . . Assimilate 1 | . . . 1 . . . . . . . . . . . . . . . Botnet 13 | . 2 . 6 . . . 3 2 . . . . . . . . . . Disrupt 2 | . . . . . . . 1 . . . . . 1 . . . . . Operators 2 | . . . 1 . . . 1 . . . . . . . . . . . Skim 21 | . 6 . 10 . . . 5 . . . . . . . . . . . Fabricators 5 | . . . . . . . . 1 . . . . 2 . 2 . . . Liberate 1 | . . . . . . . . . . . . . . . 1 . . . Haulers 2 | . . . . . . . . 1 . . . . 1 . . . . . Recompile 2 | . . . . . . . . . . . . . 1 . 1 . . . Repair Stations 1 | . . . . . . . 1 . . . . . . . . . . . Patch 1 | . . . . . . . 1 . . . . . . . . . . . Recycling Units 5 | . 2 . 2 . . . 1 . . . . . . . . . . . Tunnel 5 | . 2 . 2 . . . 1 . . . . . . . . . . . Scanalyzers . | . . . . . . . . . . . . . . . . . . . Garrison Access . | . . . . . . . . . . . . . . . . . . . Data Cores Recovered 3 | . . . 1 . . . . 1 . . . . 1 . . . . . Used 1 | . . . . . . . . . . . . . 1 . . . . . Hacking Detections 72 | . 7 . 13 . . . 10 10 . . . . 15 5 12 . . . Full Trace Events 6 | . 1 . . . . . 1 1 . . . . . 1 2 . . . Feedback Events 1 | . . . . . . . . 1 . . . . . . . . . . Corruption 1 | . . . . . . . . 1 . . . . . . . . . . Feedback Blocked . | . . . . . . . . . . . . . . . . . . . Robot Schematics Acquired 4 | . . . . . . . . . . . 4 . . . . . . . Robots Built . | . . . . . . . . . . . . . . . . . . . Authchips . | . . . . . . . . . . . . . . . . . . . Time . | . . . . . . . . . . . . . . . . . . . Total Robot Build Rating . | . . . . . . . . . . . . . . . . . . . Part Schematics Acquired 13 | . . . . . . . . . . . 13 . . . . . . . Parts Built 1 | . . . . . . . . . . . . . . . 1 . . . Authchips 2 | . . . . . . . . . . . . . . . 2 . . . Time 228 | . . . . . . . . . . . . . . . 228 . . . Total Part Build Rating 5 | . . . . . . . . . . . . . . . 5 . . . Part Studies Acquired 6 | . . . 2 . . . 1 . . . . . . . 3 . . . Parts Repaired . | . . . . . . . . . . . . . . . . . . . Time . | . . . . . . . . . . . . . . . . . . . Parts Recycled . | . . . . . . . . . . . . . . . . . . . Recycled Matter . | . . . . . . . . . . . . . . . . . . . Retrieved Matter . | . . . . . . . . . . . . . . . . . . . Retrieved Components 15 | . 3 . 10 . . . . . . . . . 2 . . . . . Parts Scanalyzed 1 | . . . 1 . . . . . . . . . . . . . . . Part Schematics Acquired . | . . . . . . . . . . . . . . . . . . . Parts Damaged . | . . . . . . . . . . . . . . . . . . . Bothacking | -11 -10 -10 -9 -9 -9 -8 -8 -7 -7 -7 -7 -6 -6 -6 -5 -5 -5 -5 ------------ Run | Yrd Mat Min Mat Min Exi Min Mat Fac Low Low Dat Pro Fac Ext Fac Upp Upp War Used RIF Installer . | . . . . . . . . . . . . . . . . . . . Robots Hacked 1 | . . . . . . . . 1 . . . . . . . . . . Non-combat 1 | . . . . . . . . 1 . . . . . . . . . . Combat . | . . . . . . . . . . . . . . . . . . . Robot Hacks Applied 1 | . . . . . . . . 1 . . . . . . . . . . find_chute 1 | . . . . . . . . 1 . . . . . . . . . . Relay Couplers Released . | . . . . . . . . . . . . . . . . . . . Fabnet Peak Effective % . | . . . . . . . . . . . . . . . . . . . Robots Rewired 10 | . . . . . 1 . . . . . . . . 4 . . . 5 Allies Hacked 1 | . . . . . . . . . . . . . . . . . . 1 Hacks Repelled . | . . . . . . . . . . . . . . . . . . . Allies | -11 -10 -10 -9 -9 -9 -8 -8 -7 -7 -7 -7 -6 -6 -6 -5 -5 -5 -5 -------- Run | Yrd Mat Min Mat Min Exi Min Mat Fac Low Low Dat Pro Fac Ext Fac Upp Upp War Total Allies 21 | . . 3 . . 1 . . . . . . . . 10 2 . . 5 Largest Group 7 | . . 3 3 . 1 1 . . . . . . . 7 3 . . 5 Highest-Rated Group 298 | . . 40 40 . 8 8 . . . . . . . 298 82 . . 236 Highest-Rated Ally 159 | . . 16 16 . 8 8 . . . . . . . 159 41 . . 64 Total Orders 3 | . . . . . . . . 3 . . . . . . . . . . EXPLORE 1 | . . . . . . . . 1 . . . . . . . . . . RETURN 2 | . . . . . . . . 2 . . . . . . . . . . Ally Attacks 121 | . . 4 9 . . 4 . . . . . . . 58 21 . . 25 Total Damage 3344 | . . 37 98 . . 32 . . . . . . . 1405 558 . . 1214 Kills 24 | . . 3 . . . . . . . . . . . 9 5 . . 7 Allies Corrupted 1 | . . . . . . . . . . . . . . . . . . 1 Allies Melted 3 | . . . . . . . . . . . . . . 2 1 . . . Intel | -11 -10 -10 -9 -9 -9 -8 -8 -7 -7 -7 -7 -6 -6 -6 -5 -5 -5 -5 ------- Run | Yrd Mat Min Mat Min Exi Min Mat Fac Low Low Dat Pro Fac Ext Fac Upp Upp War Active Infowar (turns) 13270 | 32 811 913 2094 740 . . . 469 873 978 105 1043 1100 86 1260 904 827 1035 Sensors 8313 | . . . . . . . . 102 873 978 105 1043 1100 86 1260 904 827 1035 Seismic 4957 | 32 811 913 2094 740 . . . 367 . . . . . . . . . . Robot Analysis Total 4 | . 4 . . . . . . . . . . . . . . . . . Derelict Logs Recovered 11 | . . 1 . 2 . . . . 2 2 . 1 . . . 1 2 . Drone Launches 1 | . . . . . . . . 1 . . . . . . . . . . Drone Recoveries . | . . . . . . . . . . . . . . . . . . . Exploration | -11 -10 -10 -9 -9 -9 -8 -8 -7 -7 -7 -7 -6 -6 -6 -5 -5 -5 -5 ------------- Run | Yrd Mat Min Mat Min Exi Min Mat Fac Low Low Dat Pro Fac Ext Fac Upp Upp War Turns Passed 25826 | 107 1391 913 3199 1826 1648 1209 2036 2617 879 1030 107 1118 1621 890 2154 980 965 1136 Spaces Moved 13184 | 52 704 563 1013 545 529 363 766 1189 765 826 82 826 1002 551 1151 741 719 797 Core 8 | 6 2 . . . . . . . . . . . . . . . . . Treads 5268 | 46 702 563 1013 545 529 363 766 741 . . . . . . . . . . Legs 7908 | . . . . . . . . 448 765 826 82 826 1002 551 1151 741 719 797 Wheels . | . . . . . . . . . . . . . . . . . . . Hover . | . . . . . . . . . . . . . . . . . . . Flight . | . . . . . . . . . . . . . . . . . . . Fastest Speed 50 | 50 160 160 160 320 240 320 200 105 112 112 122 122 114 120 110 112 106 117 Average Speed 167 | 147 160 160 259 320 307 320 227 176 112 113 122 122 117 121 143 113 113 118 Slowest Speed 350 | 160 350 160 320 320 320 320 240 235 187 187 122 122 188 190 190 182 184 167 Overloaded Moves . | . . . . . . . . . . . . . . . . . . . Propulsion Burnouts . | . . . . . . . . . . . . . . . . . . . Robots Hopped . | . . . . . . . . . . . . . . . . . . . Potential Cave-ins 20 | . . . . . . . . . . . . . 16 . . . . 4 Cave-ins Triggered 3 | . . . . . . . . . . . . . 3 . . . . . Exploration Rate (%) 73 | 5 97 98 87 97 90 96 69 64 76 97 69 85 27 49 35 82 80 90 Regions Visited 18 Branch Regions 12 Pre-discovered Areas 17 | . 2 . 7 1 1 . 1 . . 2 1 . . . . 1 1 . Known Exits Taken 12 | . . . 1 . . 1 . 1 1 1 1 1 1 1 1 1 1 . Unknown Exits Taken 6 | 1 1 1 . 1 1 . 1 . . . . . . . . . . . Scrap Searched 24 | . . 3 . 2 . 1 . . 8 4 . 3 . . . 1 2 . Spaces Dug 186 | . . . 11 . . . . 1 . 1 . 49 59 . 32 27 6 . Terrain Destroyed 676 | . . . 15 . . 54 3 1 . 1 . 98 156 13 85 30 106 114 Melee 62 | . . . . . . . . 1 . 1 . 4 35 . 10 9 2 . Projectile 61 | . . . . . . 2 . . . . . 3 3 1 33 7 9 3 AOE 552 | . . . 15 . . 52 3 . . . . 91 117 12 42 14 95 111 Terrain Rammed . | . . . . . . . . . . . . . . . . . . . Walls Destroyed . | . . . . . . . . . . . . . . . . . . . Machines Disabled . | . . . . . . . . . . . . . . . . . . . Actions | -11 -10 -10 -9 -9 -9 -8 -8 -7 -7 -7 -7 -6 -6 -6 -5 -5 -5 -5 --------- Run | Yrd Mat Min Mat Min Exi Min Mat Fac Low Low Dat Pro Fac Ext Fac Upp Upp War Total 15546 | 66 852 572 1455 584 546 386 914 1535 784 871 88 891 1253 718 1432 826 817 956 Wait 743 | . 34 5 259 4 1 . 14 125 . 3 . 17 50 80 37 37 53 24 Move 13166 | 52 703 562 1012 544 528 362 765 1188 764 825 81 825 1000 550 1150 740 718 797 Hop . | . . . . . . . . . . . . . . . . . . . Pick Up 168 | 1 17 . 31 . 1 . 11 26 4 3 . 1 20 12 29 2 2 8 Fast Attach 62 | 7 10 . 5 1 1 . . 7 2 . 3 . 6 2 11 1 2 4 Attach 82 | . 4 . 1 . 2 2 8 16 . 2 . 2 19 7 12 . 3 4 Detach 21 | . 2 . . . 3 . . 7 2 . . . . 3 3 . . 1 Swap 301 | . 6 . 31 8 3 4 7 32 7 11 1 22 49 15 56 16 17 16 Drop 146 | . 12 . 31 . 2 . . 32 2 3 3 1 8 12 29 1 . 10 Fire 609 | 6 59 . 77 23 4 16 100 75 . 22 . 19 56 24 85 12 14 17 Melee 94 | . . . . . 1 . . 5 . 1 . 4 42 . 16 17 8 . Ram . | . . . . . . . . . . . . . . . . . . . Kick 10 | . . . . . . . . . 3 1 . . 2 . 4 . . . Crush 37 | . 5 5 8 4 . 2 9 4 . . . . . . . . . . Escape Stasis 5 | . . . . . . . . 4 . . . . 1 . . . . . Rewire 88 | . . . . . . . . . . . . . . 13 . . . 75 Trap 14 | . . . . . . . . 14 . . . . . . . . . . Miscellaneous . | . . . . . . . . . . . . . . . . . . . Route ------- -11/Scrapyard -10/Materials (discovered 6 exits: *Mat x3 / [*Min x2] / [*Sub]) -10/Mines (discovered 2 exits: *Mat x2) -9/Materials (discovered 4 exits: *Mat x3 / *Min) -9/Mines (discovered 3 exits: *Mat x2 / *Exi) -9/Exiles -8/Mines (discovered 2 exits: *Mat x2) -8/Materials (discovered 4 exits: *Fac x3 / *Sto) -7/Factory (discovered 5 exits: *Fac x3 / *Low x2) -7/Lower Caves -7/Lower Caves (discovered 2 exits: *Fac / *Dat) -7/Data Miner -6/Proximity Caves -6/Factory (discovered 4 exits: Low x2 / *Ext x2) -6/Extension -5/Factory (discovered 3 exits: [*Fac] / *Upp x2) -5/Upper Caves -5/Upper Caves (discovered 2 exits: [*Fac] / *War) -5/Warlord (discovered 1 exit: [*Pro]) History --------- Turn | Location | Event 3 | -11/Scrapyard | Discovered new exit (range 15) 108 | -11/Scrapyard | Entered Materials 313 | -10/Materials | Build established: Mutant 460 | -10/Materials | Discovered new exit (range 4) 669 | -10/Materials | Lost 3 parts (1n1u1w) 722 | -10/Materials | Discovered new exit (range 6) 892 | -10/Materials | Discovered new exit (range 16) 915 | -10/Materials | Discovered new exit (range 14) 1288 | -10/Materials | Discovered new exit (range 14) 1305 | -10/Materials | Discovered new exit (range 13) 1499 | -10/Materials | Entered Mines 1507 | -10/Mines | Assisted by bots powering up and referring to "LRC-V3" 1511 | -10/Mines | Met a Derelict bent on vengeance 1576 | -10/Mines | Discovered new exit (range 10) 1672 | -10/Mines | Discovered new exit (range 6) 1878 | -10/Mines | Learned 4 Materials zone layouts 2412 | -10/Mines | Entered Materials 2412 | -9/Materials | Accompanied by 3 allies 2412 | -9/Materials | Evolved 2 slots: Utility x1, Weapon x1 2537 | -9/Materials | Lost 3 allies 2635 | -9/Materials | Identified exit to Mines 2711 | -9/Materials | Build established: Gunner 2714 | -9/Materials | Central database locked down 2902 | -9/Materials | Learned location of 1 exit from Recycling 2936 | -9/Materials | Learned location of Zion (-6) 2961 | -9/Materials | Identified exit to Materials 2980 | -9/Materials | Learned Recycling recycling unit intel 2999 | -9/Materials | Learned location of Mines (-8) 4647 | -9/Materials | Build established: Scavenger-Gunner 5012 | -9/Materials | Build established: Gunner 5111 | -9/Materials | Core integrity fell below 50% 5212 | -9/Materials | First assault squad dispatched 5238 | -9/Materials | Learned Storage terminal intel 5299 | -9/Materials | Destroyed 10 combat bots 5307 | -9/Materials | Learned location of 1 exit from Storage 5413 | -9/Materials | Learned location of 1 exit from Recycling 5450 | -9/Materials | Learned Materials emergency access door positions 5496 | -9/Materials | Loaded intel: 2 recycling unit locations 5524 | -9/Materials | Learned 2 Storage zone layouts 5561 | -9/Materials | Learned 4 Recycling zone layouts 5611 | -9/Materials | Entered Mines 5757 | -9/Mines | Learned Materials stockpile data 6158 | -9/Mines | Deemed a non-threat by the Exiles lab entrance 6222 | -9/Mines | Discovered exit to Materials (range 11) 6446 | -9/Mines | A weapon hastily lodged in a ceiling crevice suddenly fell to the ground 7424 | -9/Mines | Discovered new exit (range 5) 7437 | -9/Mines | Entered Exiles 7437 | -9/Exiles | Found Exiles lab destroyed 8275 | -9/Exiles | Opened EX-Vault 8291 | -9/Exiles | Found Supersonic Drone Bay 8577 | -9/Exiles | Discovered new exit (range 10) 9085 | -9/Exiles | Entered Mines 9085 | -8/Mines | Accompanied by 1 ally 10099 | -8/Mines | Discovered exit to Materials (range 11) 10211 | -8/Mines | Discovered exit to Materials (range 5) 10294 | -8/Mines | Entered Materials 10294 | -8/Materials | Evolved 2 slots: Propulsion x2 10500 | -8/Materials | Garrison activated, responded to threat 10546 | -8/Materials | Destroyed 7 combat bots 10726 | -8/Materials | Discovered new exit (range 4) 10841 | -8/Materials | Identified exit to Storage 10933 | -8/Materials | Destroyed 8 combat bots 11295 | -8/Materials | Discovered new exit (range 7) 11352 | -8/Materials | Central database locked down 11460 | -8/Materials | Discovered new exit (range 3) 12330 | -8/Materials | Entered Factory 12330 | -7/Factory | Evolved 2 slots: Utility x2 12337 | -7/Factory | Discovered new exit (range 33) 12351 | -7/Factory | Discovered new exit (range 113) 13666 | -7/Factory | Identified exit to Lower Caves 13828 | -7/Factory | Discovered new exit (range 8) 14624 | -7/Factory | Discovered new exit (range 9) 14947 | -7/Factory | Entered Lower Caves 15055 | -7/Lower Caves | Encountered a Warlord checkpoint 15126 | -7/Lower Caves | Identified exit to Lower Caves 15826 | -7/Lower Caves | Entered another Lower Caves area 15963 | -7/Lower Caves | Discovered new exit (range 5) 16470 | -7/Lower Caves | Encountered a Warlord checkpoint 16701 | -7/Lower Caves | Found DCF Scrap (14 items) 16746 | -7/Lower Caves | Discovered new exit (range 8) 16757 | -7/Lower Caves | Identified exit to Data Miner 16856 | -7/Lower Caves | Entered Data Miner 16856 | -7/Data Miner | Discovered new exit (range 6) 16861 | -7/Data Miner | Identified exit to Proximity Caves 16881 | -7/Data Miner | Met Data Miner 16906 | -7/Data Miner | Learned location of Section 7 (-2) 16906 | -7/Data Miner | Acquired the access code to Warlord's prototype stash 16926 | -7/Data Miner | Received God Mode back door access code from Data Miner 16963 | -7/Data Miner | Entered Proximity Caves 17059 | -6/Proximity Caves | Spotter reported a threat 17203 | -6/Proximity Caves | Spotted B-75 Beast 17537 | -6/Proximity Caves | Destroyed 7 combat bots 17552 | -6/Proximity Caves | Learned Factory terminal intel 18037 | -6/Proximity Caves | Ambushed by research squad 18048 | -6/Proximity Caves | Core integrity fell below 50% 18066 | -6/Proximity Caves | Discovered new exit (range 11) 18079 | -6/Proximity Caves | Identified exit to Factory 18081 | -6/Proximity Caves | Entered Factory 18081 | -6/Factory | Evolved 2 slots: Propulsion x1, Utility x1 18082 | -6/Factory | Loaded intel: 27 terminal locations 18216 | -6/Factory | Build established: Derelict-Gunner 18370 | -6/Factory | Identified exit to Lower Caves 18370 | -6/Factory | Identified exit to Extension 18658 | -6/Factory | Build established: Gunner 19106 | -6/Factory | Garrison activated, responded to threat 19141 | -6/Factory | Cargo convoy interrupted 19180 | -6/Factory | Destroyed 7 combat bots 19312 | -6/Factory | Lost 12 parts (2p3n4u3w) 19381 | -6/Factory | Crushed by falling debris 19381 | -6/Factory | Core integrity fell below 50% 19408 | -6/Factory | Crushed by falling debris 19409 | -6/Factory | Crushed by falling debris 19409 | -6/Factory | System corruption reached 10% 19440 | -6/Factory | Lost 5 parts (1p1n1u2w) 19620 | -6/Factory | Build established: Mutant 19702 | -6/Factory | Entered Extension 19790 | -6/Extension | Rescued a captive Derelict 19792 | -6/Extension | Rescued a captive Derelict 19795 | -6/Extension | Incoming investigation squad redirected 19820 | -6/Extension | Core integrity fell below 20% 19917 | -6/Extension | Rescued A7 19944 | -6/Extension | Rescued a captive Derelict 19973 | -6/Extension | Rescued a captive Derelict 20076 | -6/Extension | Rescued a captive Derelict 20102 | -6/Extension | Disrupted transfer network 20197 | -6/Extension | Build established: Gunner 20488 | -6/Extension | Spotted B-75 Beast 20509 | -6/Extension | Destroyed B-75 Beast 20530 | -6/Extension | Spotted B-75 Beast 20557 | -6/Extension | Allies destroyed B-75 Beast 20560 | -6/Extension | Extracted ID and sensor layout for unrecognized location from A7's data core 20580 | -6/Extension | Lost 4 parts (1p1n2u) 20585 | -6/Extension | Discovered new exit (range 3) 20589 | -6/Extension | Identified exit to Factory 20592 | -6/Extension | Entered Factory 20592 | -5/Factory | Accompanied by 3 allies 20592 | -5/Factory | Evolved 2 slots: Power x1, Weapon x1 20593 | -5/Factory | Lost 4 allies 20814 | -5/Factory | Lost 3 allies 20818 | -5/Factory | Build established: Scavenger-Tank 20843 | -5/Factory | Identified exit to Upper Caves 21003 | -5/Factory | Fabricated Scatter Rocket Array? 21341 | -5/Factory | Incoming investigation squad redirected 21566 | -5/Factory | System corruption reached 10% 21680 | -5/Factory | Build established: Scavenger-Skirmisher 22668 | -5/Factory | Discovered new exit (range 9) 22692 | -5/Factory | First assault squad dispatched 22720 | -5/Factory | Incoming assault squad redirected 22746 | -5/Factory | Entered Upper Caves 22981 | -5/Upper Caves | Build established: Skirmisher 23288 | -5/Upper Caves | Learned location of Warlord (-5) 23296 | -5/Upper Caves | Spotted B-75 Beast 23717 | -5/Upper Caves | Discovered new exit (range 5) 23722 | -5/Upper Caves | Identified exit to Upper Caves 23726 | -5/Upper Caves | Entered another Upper Caves area 23807 | -5/Upper Caves | Discovered new exit (range 10) 24089 | -5/Upper Caves | Spotted B-75 Beast 24333 | -5/Upper Caves | Attracted the attention of an 0b10 outpost 24398 | -5/Upper Caves | Destroyed 10 combat bots 24407 | -5/Upper Caves | Learned 8 Factory zone layouts 24560 | -5/Upper Caves | Discovered new exit (range 7) 24565 | -5/Upper Caves | Identified exit to Warlord 24579 | -5/Upper Caves | Learned location of Armory (-4) 24691 | -5/Upper Caves | Entered Warlord 24732 | -5/Warlord | System corruption cleaned by Quarantine Array 25040 | -5/Warlord | Opened Warlord's prototype stash 25046 | -5/Warlord | Found Prototype Reactor 25049 | -5/Warlord | Found Prototype Device 25163 | -5/Warlord | Found Prototype Special Weapon 25163 | -5/Warlord | Identified RU-N14's Throwing Claymores v3 25323 | -5/Warlord | Warlord's base attacked by MAIN.C 25421 | -5/Warlord | Met Warlord 25627 | -5/Warlord | Found Prototype Energy Cannon 25629 | -5/Warlord | Found Prototype Energy Cannon 25650 | -5/Warlord | Build established: Commander-Skirmisher 25673 | -5/Warlord | Warlord forces counterattacked 25679 | -5/Warlord | P-70 Sage assimilated allied 1Y-PXW(g) 25757 | -5/Warlord | Spotted Striker 25766 | -5/Warlord | Allies destroyed Striker 25795 | -5/Warlord | Attacked by Warlord forces 25795 | -5/Warlord | Spotted I0-B19(g) 25803 | -5/Warlord | Spotted Striker 25812 | -5/Warlord | Spotted Executioner 25813 | -5/Warlord | Spotted Striker 25817 | -5/Warlord | Core integrity fell below 50% 25819 | -5/Warlord | Discovered new exit (range 10) 25821 | -5/Warlord | Identified Vortex Chain Reactor 25827 | -5/Warlord | Self-destructed Last Messages --------------- 25819_ Penetrated by Slug. 25819_ Slug penetrates Wall. 25819_ Slug penetrates Earth. 25820_ Imp. Titanium Leg destroyed. 25821_ Imp. Titanium Leg blown off. 25821_ Exp. Myomer Leg blown off. 25821_ Plasma Sword blown off. 25821_ Flexi-carbon Leg blown off. 25821_ E-15 Imp destroyed. 25821_ Identified Vortex Chain Reactor. 25823_ ANNOUNCEMENT: Detected 1 Saboteur squad, 1 Melee squad, 2 Grunt squads, with prototype support. 25823_ Slug penetrates Wall. 25825_ S-27 Virus destroyed. 25826_ Acquired Exp. Myomer Leg. 25826_ Slug penetrates Earth. 25826_ Slug penetrates Wall. 25826_ Penetrated by Slug. 25826_ S-27 Virus destroyed. Map ----- +----------------------------------------------------+ | | | | | | | ???????????????????????????????????? | | ???????????????????????????????????? | | ???????????????????????????????????? | | ???????????????????????????????????? | | ##?????????????????????????????????? | | #?????????????????????????????????? | | #?????????????????????????????????? | | ##?????????????????????????????????? | | ???????????????????????????????????? | | ???????????????????????????????????? | | ???????????????????????????????????? | | ?????????????##????????????????????? | | ????????????## ?????????????###????? | | ???????????## ??????????? ###??? | | ???????????# ??????????? ##?? | | ???????????? #?????????? < #?? | | ???????????? ?????????? #?? | | ????????????? #???????? #??? | | ?????????????? ???????? #???? | | ??????????????? #???????% #???? | | ???????????????? ?#???## #????? | | ????????????????# ?# ##== ##????? | | ????????????????# ##;;/%@ ;####?? | | ????????????????# % ! ;;;#? | | ????????????????## # %=%#; ;#? | | ?????????????????## =!# ;# | | "??????????????#### %;# ; #? | | ""#????????????# K;#; ;#? | | ""#?????????#### =% g;#; ;#? | | ""#??????#### ##=g ###g ##? | | ""#####??# gh##?# #? | | "" "#### # # g g ### ##? | | "" "" % #h# # ##?? | | "" [ / # # #???? | | %% [%[%=* # =!= g ##??? | | ==% &!=%% ! = =[%[ ## #??? | | [[ =%==!! %* % *= #### #??? | | %*/&!=%%! / ## #??# #??? | | =[% %%=!!* ##??# ##?? | | *%!% # #?### #?? | | "" != ### # #?? | | "" # ## #?? | | ""### # ## ## #?? | | ""#?# # # # ##?? | | ""#?########### #?# #??? | | ""?????????????### ??## ##??? | | ?????????????????? ????## #???? | +----------------------------------------------------+ Best States ------------- Heat Dissipation 91 Energy Generation 36 Energy Capacity 560 Matter Stores 349 Matter Capacity 900 Sight Range 16 Robot Scan Range 15 Terrain Scan Density 10 Armor Coverage 600 Resistance: TH 15 Weapon Shielding 66 Weapon Cycling 20 Evasion (%) 70 Targeting Accuracy 16 Core Analysis 6 Recoil Reduction 4 Particle Charging 15 Salvage Targeting 1 Offensive Hacking 12 Authchip Count 1 Item Schematics ----------------- Combat Drone Bay | -7/Data Miner | Free Lgt. Regenerative Plating | -7/Data Miner | Free Cld. Cesium-ion Thruster | -7/Data Miner | Free Gravity Neutralizer | -7/Data Miner | Free Scatter Rocket Array | -7/Data Miner | Free Antigrav System | -7/Data Miner | Free Adv. Shield Generator | -7/Data Miner | Free Adv. Plasma Cannon | -7/Data Miner | Free IFF Parser | -7/Data Miner | Free Disruptor Cannon | -7/Data Miner | Free Linear Gravjet | -7/Data Miner | Free Impulse Thruster | -7/Data Miner | Free Adv. Thermal Shield | -7/Data Miner | Free Robot Schematics ------------------ G-50 Soldier | -7/Data Miner | Free L-41 Fighter | -7/Data Miner | Free S-27 Virus | -7/Data Miner | Free R-10 Processor | -7/Data Miner | Free Fabricated ------------ Scatter Rocket Array | x1 | -5/Factory | Authchip Repaired ---------- Nothing Studied --------- Autogun | -9/Materials | Hacked Grenade Launcher | -9/Materials | Hacked Imp. Treads | -8/Materials | Hacked Fission Core | -5/Factory | Hacked Thunder Leg | -5/Factory | Hacked Imp. VSS Leg | -5/Factory | Hacked Alien Tech Used ----------------- None Achievements -------------- None Challenges ------------ None Game ------ Seed GaussMiniHammerchucker Manual? 0 Play Time 02:36:00 Cumulative 578.5 hours Start 2025.11.16 @ 15:19:30 End 2025.11.17 @ 17:04:44 Sessions 3 Manual Loads 0 Difficulty Rogue Special Mode None Game No. 304 Rogue 304 Adventurer 0 Explorer 0 Win Type - Total 28 Types 14/2/7/1/0/0/1/1/1/1 Lore% 94 Gallery% 89 Achievement% 81 Wizard Run 0 Options --------- Layout 2 ASCII 1 Keyboard 1 Movement Vi Keybinds 0 Fullscreen 1 Font 28/Terminus Map View 50x52 Zoom Use 0% Tactical HUD 1 Map Filters NONE Filters NONE Steam 1 RUN: 79e9aa38-e515-488d-b4d5-17a0964a0910